Workbook

Sheet MSU
B1: Jukka Tuomisto | E1: 28.3.1989 Alajärvi
B2: SUPERPESIS | E2: Runkosarja | I2: Kärkilyönnit (KL), pesänvälit | P2: Runkosarja TOP-30 | U2: Alempi loppusarja | AB2: Ylempi loppusarja TOP-10 | AG2: Play off, voitot, voittoprosentti | AL2: Arvo-ottelut | AO2: Mitalit
B3: Vuosi | C3: Sija | D3: Seura | E3: OTT | F3: KUN | G3: LÖI | H3: TOI | I3: KL | J3: 0 > 1 | K3: 1 > 2 | L3: 2 > 3 | M3: 3 > k | N3: KL-% | P3: LÖI | Q3: TOI | R3: L+T | S3: KL | U3: OTT | V3: KUN | W3: LÖI | X3: TOI | Y3: KL | Z3: KL-% | AB3: LÖI | AC3: TOI | AD3: L+T | AE3: KL | AG3: Puolivälierät | AH3: Välierät | AI3: Pronssi | AJ3: Finaalit | AL3: IL | AM3: LL | AN3: hSM | AO3: K | AP3: H | AQ3: P
B4: 2005 | C4: 8. | D4: AA 2 | F4: suomensarja | AA4: 0
B5: 2006 | C5: 9. | D5: AA 2 | F5: suomensarja | AA5: 0
B6: 2006 | C6: 6. | D6: AA | F6: ykköspesis
B7: 2007 | C7: 11. | D7: AA | F7: ykköspesis | AA7: 0
B8: 2008 | C8: 10. | D8: AA | F8: ykköspesis | AA8: 0
B9: 2009 | C9: 8. | D9: AA | F9: ykköspesis | AA9: 66
B10: 2010 | C10: 2. | D10: AA | F10: ykköspesis | O10: 0
B11: 2011 | C11: 1. | D11: AA | F11: ykköspesis | O11: 0
B12: 2012 | C12: 12. | D12: AA | E12: 20 | F12: 0 | G12: 5 | H12: 4 | I12: 45 | J12: 32 | K12: 5 | L12: 3 | M12: 5 | N12: 48.9 % | O12: =PRODUCT(I12/N12) -> 92.02453988 | U12: 4 | V12: 0 | W12: 0 | X12: 1 | Y12: 9 | Z12: 56.3 %
B13: 2013 | C13: 7. | D13: AA 2 | F13: suomensarja
B14: 2013 | C14: 2. | D14: HP-K | F14: ykköspesis | O14: 0
B15: 2013 | C15: 12. | D15: AA | E15: 18 | F15: 0 | G15: 1 | H15: 1 | I15: 27 | J15: 23 | K15: 2 | L15: 1 | M15: 1 | N15: 37.5 % | O15: =PRODUCT(I15/N15) -> 72 | U15: 4 | V15: 0 | W15: 0 | X15: 1 | Y15: 8 | Z15: 53.3 % | AA15: 0
B16: 2014 | C16: 10. | D16: AA | E16: 13 | F16: 0 | G16: 2 | H16: 0 | I16: 19 | J16: 11 | K16: 4 | L16: 2 | M16: 2 | N16: 38.0 % | O16: =PRODUCT(I16/N16) -> 50 | AA16: 0
B17: 2015 | C17: 3. | D17: Manse PP | F17: ykköspesis | U17: 4 | V17: 0 | W17: 0 | X17: 2 | Y17: 18 | Z17: 52.9 % | AA17: 40
B18: 2016 | C18: 3. | D18: Manse PP* | F18: ykköspesis | U18: 5 | V18: 0 | W18: 0 | X18: 10 | Y18: 26 | Z18: 56.5 % | AA18: 74
B19: 2017 | C19: 4. | D19: Manse PP* | F19: ykköspesis | AA19: 85
B20: 2018 | C20: 3. | D20: Manse PP* | F20: ykköspesis | U20: 5 | V20: 0 | W20: 0 | X20: 0 | Y20: 7 | Z20: 25.0 % | AA20: 28
B21: 2019 | C21: 1. | D21: Manse PP* | F21: ykköspesis
B22: 2020 | C22: 12. | D22: Manse PP | E22: 24 | F22: 0 | G22: 3 | H22: 13 | I22: 57 | J22: 19 | K22: 24 | L22: 11 | M22: 3 | N22: 40.7 % | O22: 140
B23: Yhteensä | E23: =SUM(E4:E22) -> 75 | F23: 0 | G23: 11 | H23: 18 | I23: 148 | J23: 85 | K23: 35 | L23: 17 | M23: 11 | N23: =PRODUCT(I23/O23) -> 41.8 % | O23: =SUM(O7:O22) -> 354.0245399 | P23: 0-0-0 | Q23: 0-0-0 | R23: 0-0-0 | S23: 0-0-0 | U23: =SUM(U4:U22) -> 22 | V23: =SUM(V4:V22) -> 0 | W23: =SUM(W4:W22) -> 0 | X23: =SUM(X4:X22) -> 14 | Y23: =SUM(Y4:Y22) -> 68 | Z23: 48.9 % | AA23: =SUM(AA3:AA22) -> 293 | AB23: 0-0-0 | AC23: 0-0-0 | AD23: 0-0-0 | AE23: 0-0-0 | AG23: 0/0 | AH23: 0/0 | AI23: 0/0 | AJ23: 0/0 | AL23: =SUM(AL4:AL22) -> 0 | AM23: 0 | AN23: 0 | AO23: 0 | AP23: 0 | AQ23: 0
AG24: 0.0 % | AH24: 0.0 % | AI24: 0.0 % | AJ24: 0.0 %
B25: Pesispörssi | D25: =SUM(F23:H23)+((I23-F23-G23)/3)+(E23/3)+(AL23*25)+(AM23*25)+(AN23*10)+(AO23*25)+(AP23*20)+(AQ23*15) -> 99.7
B27: URA SUPERISSA | E27: OTT | F27: KUN | G27: LÖI | H27: TOI | I27: KL | K27: ka/L | L27: ka/T | M27: ka/KL | N27: KL-% | P27: ENSIMMÄISET RUNKOSARJASSA
B28: Runkosarja | E28: =PRODUCT(E23) -> 75 | F28: =PRODUCT(F23) -> 0 | G28: =PRODUCT(G23) -> 11 | H28: =PRODUCT(H23) -> 18 | I28: =PRODUCT(I23) -> 148 | K28: =PRODUCT((F28+G28)/E28) -> 0.15 | L28: =PRODUCT(H28/E28) -> 0.24 | M28: =PRODUCT(I28/E28) -> 1.97 | N28: =PRODUCT(N23) -> 41.8 % | O28: =PRODUCT(O23) -> 354.0245399 | P28: Ottelu | R28: 09.05. 2012 AA - PattU 1-2 (2-1, 3-7, 0-1) | AA28: 1. ottelu | AD28: 23 v 1 kk 11 pv
B29: Ylempi loppusarja | P29: Lyöty | R29: 12.05. 2012 KiPa - AA 1-2 (1-4, 2-0, 0-3) | AA29: 2. ottelu | AD29: 23 v 1 kk 14 pv
B30: Alempi loppusarja | E30: 22 | F30: 0 | G30: 0 | H30: 14 | I30: 68 | K30: =PRODUCT((F30+G30)/E30) -> 0.00 | L30: =PRODUCT(H30/E30) -> 0.64 | M30: =PRODUCT(I30/E30) -> 3.09 | N30: =PRODUCT(I30/O30) -> 48.9 % | O30: 139 | P30: Tuotu | R30: 07.07. 2012 AA - Kiri 1-2 (6-7, 4-0, 1-2) | AA30: 14. ottelu | AD30: 23 v 3 kk 9 pv
B31: KAIKKI | E31: =SUM(E28:E30) -> 97 | F31: =SUM(F28:F30) -> 0 | G31: =SUM(G28:G30) -> 11 | H31: =SUM(H28:H30) -> 32 | I31: =SUM(I28:I30) -> 216 | K31: =PRODUCT((F31+G31)/E31) -> 0.11 | L31: =PRODUCT(H31/E31) -> 0.33 | M31: =PRODUCT(I31/E31) -> 2.23 | N31: =PRODUCT(I31/O31) -> 43.8 % | O31: =SUM(O28:O30) -> 493.0245399 | P31: Kunnari
B33: Seurat | D33: AA = Alajärven Ankkurit (1944), kasvattajaseura
D34: HP-K = Haapajärven Pesä-Kiilat (1990)
D35: Manse PP = Manse PP, Tampere (2005)
D36: Manse PP* = Manse PP Edustus (2015)

Sheet MYP, MSS
B1: Jukka Tuomisto | E1: 28.3.1989 Alajärvi
B2: YKKÖSPESIS | E2: Runkosarja | L2: Runkosarja TOP-10 | Q2: Jatkosarjat | X2: SUOMENSARJA | AA2: Runkosarja | AH2: Runkosarja TOP-10 | AM2: Jatkosarjat
B3: Vuosi | C3: Sija | D3: Seura | E3: OTT | F3: KUN | G3: LÖI | H3: TOI | I3: KL | J3: KL-% | L3: LÖI | M3: TOI | N3: L+T | O3: KL | Q3: OTT | R3: KUN | S3: LÖI | T3: TOI | U3: KL | V3: KL-% | X3: Vuosi | Y3: Sija | Z3: Seura | AA3: OTT | AB3: KUN | AC3: LÖI | AD3: TOI | AE3: KL | AF3: KL-% | AH3: LÖI | AI3: TOI | AJ3: L+T | AK3: KL | AM3: OTT | AN3: KUN | AO3: LÖI | AP3: TOI | AQ3: KL | AR3: KL-%
X4: 2005 | Y4: 8. | Z4: AA 2 | AA4: 2 | AB4: 0 | AC4: 2 | AD4: 4 | AE4: 7 | AF4: 53.8 % | AG4: 13
B5: 2006 | C5: 6. | D5: AA | E5: 0 | F5: 0 | G5: 0 | H5: 0 | I5: 0 | J5: ---- | Q5: 1 | R5: 0 | S5: 0 | T5: 0 | U5: 6 | V5: 100.0 % | W5: 6 | X5: 2006 | Y5: 9. | Z5: AA 2 | AA5: 12 | AB5: 0 | AC5: 3 | AD5: 17 | AE5: 53 | AF5: 62.4 % | AG5: 85
B6: 2007 | C6: 11. | D6: AA | E6: 14 | F6: 0 | G6: 0 | H6: 7 | I6: 18 | J6: 38.3 % | K6: 47
B7: 2008 | C7: 10. | D7: AA | E7: 18 | F7: 0 | G7: 0 | H7: 7 | I7: 39 | J7: 50.6 % | K7: 77
B8: 2009 | C8: 8. | D8: AA | E8: 14 | F8: 0 | G8: 2 | H8: 3 | I8: 18 | J8: 31.0 % | K8: 58
B9: 2010 | C9: 2. | D9: AA | E9: 21 | F9: 0 | G9: 3 | H9: 8 | I9: 35 | J9: 31.5 % | K9: 111 | Q9: 5 | R9: 0 | S9: 1 | T9: 0 | U9: 10 | V9: 43.5 % | W9: 23
B10: 2011 | C10: 1. | D10: AA | E10: 22 | F10: 0 | G10: 5 | H10: 15 | I10: 54 | J10: 46.2 % | K10: 117 | Q10: 7 | R10: 0 | S10: 0 | T10: 1 | U10: 20 | V10: 58.8 % | W10: 34
B11: 2013 | C11: 12. | D11: HP-K | E11: 1 | F11: 0 | G11: 1 | H11: 0 | I11: 3 | J11: 60.0 % | K11: 5 | X11: 2013 | Y11: 7. | Z11: AA 2 | AA11: 2 | AB11: 0 | AC11: 1 | AD11: 3 | AE11: 13 | AF11: 86.7 % | AG11: 15
B13: 2015 | C13: 3. | D13: Manse PP | E13: 13 | F13: 0 | G13: 0 | H13: 18 | I13: 67 | J13: 72.8 % | K13: 92 | Q13: 7 | R13: 0 | S13: 0 | T13: 14 | U13: 35 | V13: 63.6 % | W13: 55
B14: 2016 | C14: 3. | D14: Manse PP* | E14: 24 | F14: 0 | G14: 4 | H14: 28 | I14: 119 | J14: 69.6 % | K14: 171 | Q14: 4 | R14: 0 | S14: 0 | T14: 4 | U14: 21 | V14: 72.4 % | W14: 29
B15: 2017 | C15: 4. | D15: Manse PP* | E15: 23 | F15: 3 | G15: 5 | H15: 32 | I15: 121 | J15: 67.2 % | K15: 180 | Q15: 3 | R15: 0 | S15: 0 | T15: 4 | U15: 14 | V15: 51.9 % | W15: 27
B16: 2018 | C16: 3. | D16: Manse PP* | E16: 5 | F16: 0 | G16: 0 | H16: 5 | I16: 15 | J16: 44.1 % | K16: 34 | Q16: 4 | R16: 0 | S16: 0 | T16: 1 | U16: 13 | V16: 54.2 % | W16: 24
B17: 2019 | C17: 1. | D17: Manse PP* | E17: 24 | F17: 0 | G17: 6 | H17: 32 | I17: 112 | J17: 71.3 % | K17: 157
B18: YHTEENSÄ | E18: =SUM(E4:E17) -> 179 | F18: =SUM(F4:F17) -> 3 | G18: =SUM(G4:G17) -> 26 | H18: =SUM(H4:H17) -> 155 | I18: =SUM(I4:I17) -> 601 | J18: =PRODUCT(I18/K18) -> 57.3 % | K18: =SUM(K4:K17) -> 1049 | Q18: =SUM(Q4:Q17) -> 31 | R18: =SUM(R4:R17) -> 0 | S18: =SUM(S4:S17) -> 1 | T18: =SUM(T4:T17) -> 24 | U18: =SUM(U4:U17) -> 119 | V18: =PRODUCT(U18/W18) -> 60.1 % | W18: =SUM(W4:W17) -> 198 | X18: YHTEENSÄ | AA18: =SUM(AA4:AA17) -> 16 | AB18: =SUM(AB4:AB17) -> 0 | AC18: =SUM(AC4:AC17) -> 6 | AD18: =SUM(AD4:AD17) -> 24 | AE18: =SUM(AE4:AE17) -> 73 | AF18: =PRODUCT(AE18/AG18) -> 64.6 % | AG18: =SUM(AG4:AG17) -> 113 | AM18: =SUM(AM4:AM17) -> 0 | AN18: =SUM(AN4:AN17) -> 0 | AO18: =SUM(AO4:AO17) -> 0 | AP18: =SUM(AP4:AP17) -> 0 | AQ18: =SUM(AQ4:AQ17) -> 0 | AR18: 0.0 % | AS18: =SUM(AS4:AS17) -> 0
B20: KAIKKI OTTELUT | E20: OTT | F20: KUN | G20: LÖI | H20: TOI | I20: KL | J20: KL-% | L20: ka/L | M20: ka/T | N20: ka/l+t | O20: ka/kl | R20: Seurat | T20: AA = Alajärven Ankkurit (1944), kasvattajaseura
B21: SUPERPESIS | E21: 97 | F21: 0 | G21: 11 | H21: 32 | I21: 216 | J21: 43.8 % | K21: =PRODUCT(I21/J21) -> 493.1506849 | L21: =PRODUCT((F21+G21)/E21) -> 0.11 | M21: =PRODUCT(H21/E21) -> 0.33 | N21: =PRODUCT((F21+G21+H21)/E21) -> 0.44 | O21: =PRODUCT(I21/E21) -> 2.23 | T21: HP-K = Haapajärven Pesä-Kiilat (1990)
B22: YKKÖSPESIS | E22: =PRODUCT(E18+Q18) -> 210 | F22: =PRODUCT(F18+R18) -> 3 | G22: =PRODUCT(G18+S18) -> 27 | H22: =PRODUCT(H18+T18) -> 179 | I22: =PRODUCT(I18+U18) -> 720 | J22: =PRODUCT(I22/K22) -> 57.7 % | K22: =PRODUCT(K18+W18) -> 1247 | L22: =PRODUCT((F22+G22)/E22) -> 0.14 | M22: =PRODUCT(H22/E22) -> 0.85 | N22: =PRODUCT((F22+G22+H22)/E22) -> 1.00 | O22: =PRODUCT(I22/E22) -> 3.43 | T22: Manse PP = Manse PP, Tampere (2005)
B23: SUOMENSARJA | E23: =PRODUCT(AA18+AM18) -> 16 | F23: =PRODUCT(AB18+AN18) -> 0 | G23: =PRODUCT(AC18+AO18) -> 6 | H23: =PRODUCT(AD18+AP18) -> 24 | I23: =PRODUCT(AE18+AQ18) -> 73 | J23: =PRODUCT(I23/K23) -> 64.6 % | K23: =PRODUCT(AG18+AS18) -> 113 | L23: =PRODUCT((F23+G23)/E23) -> 0.38 | M23: =PRODUCT(H23/E23) -> 1.50 | N23: =PRODUCT((F23+G23+H23)/E23) -> 1.88 | O23: =PRODUCT(I23/E23) -> 4.56 | T23: Manse PP* = Manse PP Edustus (2015)
B24: YHTEENSÄ | E24: =SUM(E21:E23) -> 323 | F24: =SUM(F21:F23) -> 3 | G24: 44 | H24: 235 | I24: 1009 | J24: =PRODUCT(I24/K24) -> 54.4 % | K24: =SUM(K21:K23) -> 1853.150685 | L24: =PRODUCT((F24+G24)/E24) -> 0.15 | M24: =PRODUCT(H24/E24) -> 0.73 | N24: =PRODUCT((F24+G24+H24)/E24) -> 0.87 | O24: =PRODUCT(I24/E24) -> 3.12

Sheet Arvo-ottelut
B1: ITÄ - LÄNSI - KORTTI
B2: Jukka Tuomisto | C2: 28.3.1989 Alajärvi
B3: B-POJAT | C3: Itä - Länsi, tulos | D3: Joukkue | E3: Seura | G3: V | H3: T | I3: H | J3: Up. | K3: Lj. | L3: Palk. | M3: O | N3: K | O3: L | P3: T | Q3: KL | R3: 1 | S3: 2 | T3: 3 | U3: k | V3: KL-% | W3: Pelinjohtaja | X3: Yleisöä
B4: 30.06. 2007 Kouvola | C4: 0-1 (1-3, 3-3) | D4: Länsi | E4: AA | G4: 1 | J4: 3k | K4: 6 | M4: 1 | Q4: 0/3 | R4: 0/3 | V4: 0.0 % | W4: Tommi Joensuu | X4: 1872
